bitfinex-derivatives/quotes_SOLF0:USTF0_20241105
["timestamp","ask_amount","ask_price","bid_price","bid_amount"]
[1730850558531,11.50435365,166.98,166.85,4.0012]
[1730850558722,11.50435365,166.92,166.85,4.0012]
[1730850558925,3.16,166.91,166.85,4.0012]
[1730850559224,3.16,166.91,166.86,11.50435365]
[1730850559429,3.16,166.91,166.88,2.9961]
[1730850559926,3.18,166.95,166.9,2.9959]
[1730850560115,3.18,166.97,166.88,11.50435365]
[1730850561425,3.18,166.97,166.9,11.50435365]
[1730850561627,3.18,166.97,166.91,1.3419]
[1730850562328,3.18,166.97,166.93,2.9952]
[1730850563032,3.18,166.97,166.91,1.3419]
[1730850564230,3.18,166.97,166.93,2.9952]
[1730850564635,3.18,166.97,166.94,2.9952]
[1730850565236,10.40755307,166.99,166.93,11.50435365]
[1730850565627,3.18,167.01,166.93,11.50435365]
[1730850565934,3.18,167.01,166.95,2.9948]
[1730850566128,3.18,167.01,166.93,11.50435365]
[1730850566926,3.18,167.01,166.95,2.995]
[1730850567134,14.68435365,167.01,166.93,11.50435365]
[1730850567332,14.68435365,167.01,166.92,2.5836]
[1730850567737,14.68435365,167.01,166.94,2.9951]
[1730850568035,14.68435365,167.01,166.92,2.5836]
[1730850569341,14.68435365,167.01,166.95,2.995]
[1730850569836,14.68435365,167.01,166.92,2.5836]
[1730850570042,14.68435365,167.01,166.96,2.9948]
[1730850570226,14.68435365,167.01,166.92,2.5836]
[1730850571229,14.68435365,167.01,166.92,2.9954]
[1730850571434,7.36630781,166.97,166.92,10.36170781]
[1730850571633,10.54630781,166.97,166.92,10.36170781]
[1730850571826,10.54630781,166.97,166.93,2.9953]
[1730850572027,10.54630781,166.97,166.92,7.36630781]
[1730850572428,10.54630781,166.97,166.93,2.9952]
[1730850572637,10.54630781,166.97,166.92,7.36630781]
[1730850573438,10.54630781,166.97,166.94,2.9951]
[1730850573640,3.18,166.97,166.92,7.36630781]
[1730850573837,3.18,166.97,166.94,2.9952]
[1730850574540,10.54630781,166.97,166.94,2.9952]
[1730850574941,10.54630781,166.97,166.92,10.36170781]
[1730850575843,10.54630781,166.97,166.92,7.36630781]
[1730850576037,7.36630781,166.94,166.89,7.36630781]
[1730850577347,7.36630781,166.94,166.91,2.9957]
[1730850577554,7.36630781,166.94,166.89,7.36630781]
[1730850577950,7.36630781,166.94,166.91,2.9956]
[1730850578556,3.18,166.97,166.92,7.36630781]
[1730850578854,10.54630781,166.97,166.94,2.9952]
[1730850579447,7.36630781,166.95,166.92,2.9955]
[1730850580247,10.54630781,166.97,166.93,2.9952]
[1730850581249,10.54630781,166.97,166.94,2.9951]
[1730850581457,10.54630781,166.97,166.92,7.36630781]
[1730850581956,10.54630781,166.97,166.94,2.9952]
[1730850582151,10.54630781,166.97,166.92,7.36630781]
[1730850582350,7.36630781,166.95,166.89,2.996]
[1730850582559,7.36630781,166.93,166.88,7.36630781]
[1730850583556,7.36630781,166.93,166.91,2.9957]
[1730850584952,7.36630781,166.93,166.86,3.9434]
[1730850585149,7.36630781,166.93,166.89,2.996]
[1730850586355,7.36630781,166.93,166.9,2.9959]
[1730850588462,3.18,166.97,166.9,2.9959]
[1730850588758,7.36630781,166.94,166.9,2.9959]
[1730850589462,7.36630781,166.95,166.92,2.9955]
[1730850590362,7.36630781,166.95,166.9,7.36630781]
[1730850590565,7.36630781,166.95,166.91,2.9957]
[1730850591462,7.36630781,166.95,166.91,7.36630781]
[1730850593055,7.36630781,166.95,166.86,3.9434]
[1730850593056,7.36630781,166.95,166.9,7.36630781]
[1730850594061,7.36630781,166.95,166.91,2.9956]
[1730850600273,7.36630781,166.95,166.9,2.9958]
[1730850600974,7.36630781,166.95,166.89,7.36630781]
[1730850601170,7.36630781,166.95,166.91,2.9957]
[1730850601474,10.52630781,166.95,166.91,2.9957]
[1730850601676,10.52630781,166.95,166.92,2.9954]
[1730850601865,10.52630781,166.95,166.86,3.9434]
[1730850602070,10.52630781,166.95,166.89,7.36630781]
[1730850602370,10.52630781,166.95,166.92,2.9955]
[1730850602571,3.16,166.98,166.93,7.36630781]
[1730850602778,10.52630781,166.98,166.93,7.36630781]
[1730850602973,7.36630781,166.95,166.88,3.16]
[1730850603170,7.36630781,166.95,166.9,7.36630781]
[1730850604270,7.36630781,166.95,166.92,2.9955]
[1730850605674,7.36630781,166.95,166.88,3.16]
[1730850605675,7.36630781,166.92,166.88,2.9961]
[1730850605872,7.36630781,166.92,166.87,7.36630781]
[1730850606177,7.36630781,166.92,166.89,2.996]
[1730850606874,7.36630781,166.92,166.9,2.9959]
[1730850613183,7.36630781,166.92,166.88,7.36630781]
[1730850613379,10.44630781,166.94,166.88,7.36630781]
[1730850614272,10.44630781,166.94,166.9,2.9958]
[1730850614471,7.36630781,166.9,166.84,44.37681634]
[1730850614777,7.36630781,166.9,166.84,51.74312415]
[1730850615380,7.36630781,166.9,166.86,2.9965]
[1730850615776,7.36630781,166.89,166.86,2.9965]
[1730850619176,7.36630781,166.88,166.84,10.36310781]
[1730850619470,7.36630781,166.88,166.84,7.36630781]
[1730850619680,7.36630781,166.88,166.81,1.3485]
[1730850619681,7.36630781,166.88,166.82,7.36630781]
[1730850619878,7.36630781,166.88,166.84,2.9969]
[1730850620178,7.36630781,166.88,166.82,7.36630781]
[1730850620571,7.36630781,166.88,166.83,2.997]
[1730850621685,7.36630781,166.86,166.82,7.36630781]
[1730850621887,7.36630781,166.84,166.76,2.644]
[1730850622076,1.2956,166.92,166.76,2.644]
[1730850622077,7.36630781,166.83,166.76,5.724]
[1730850622278,7.36630781,166.82,166.77,7.36630781]
[1730850623389,7.36630781,166.77,166.64,3.08]
[1730850623689,7.36630781,166.74,166.69,7.36630781]
[1730850623880,7.36630781,166.75,166.69,7.36630781]
[1730850624084,7.36630781,166.73,166.65,3.9213]
[1730850624386,7.36630781,166.75,166.7,7.36630781]
[1730850624682,3.08,166.77,166.72,7.36630781]
[1730850624886,10.44630781,166.77,166.72,7.36630781]
[1730850625383,3.08,166.77,166.74,7.36630781]
[1730850625582,7.36630781,166.78,166.74,7.36630781]
[1730850625781,7.36630781,166.78,166.74,10.36490781]
[1730850626085,3.08,166.79,166.76,7.36630781]
[1730850626874,7.36630781,166.81,166.76,7.36630781]
[1730850627073,3.08,166.8,166.76,7.36630781]
[1730850627277,3.08,166.8,166.76,10.36470781]
[1730850629784,10.44630781,166.8,166.76,2.9984]
[1730850630991,10.44630781,166.8,166.77,2.9982]
[1730850631183,7.36630781,166.8,166.77,2.9982]
[1730850631391,7.36630781,166.78,166.73,7.36630781]
[1730850631592,3.08,166.81,166.68,343.0]
[1730850631797,7.36630781,166.75,166.68,343.0]
[1730850631987,7.36630781,166.75,166.7,7.36630781]
[1730850632190,7.36630781,166.74,166.7,7.36630781]
[1730850632395,7.36630781,166.74,166.69,2.9997]
[1730850633393,7.36630781,166.72,166.68,2.9999]
[1730850634407,7.36630781,166.71,166.66,7.36630781]
[1730850634600,10.44630781,166.71,166.66,7.36630781]
[1730850635810,10.44630781,166.71,166.66,10.36650781]
[1730850636008,10.44630781,166.71,166.66,7.36630781]
[1730850636205,10.44630781,166.71,166.66,10.36650781]
[1730850637598,10.44630781,166.71,166.67,3.0]
[1730850638005,10.44630781,166.71,166.67,10.36630781]
[1730850639310,10.44630781,166.71,166.67,3.0]
[1730850639901,10.44630781,166.71,166.59,3.14]
[1730850640103,10.44630781,166.71,166.67,7.36630781]
[1730850640304,7.36630781,166.7,166.65,7.36630781]
[1730850640504,7.36630781,166.7,166.66,3.0002]
[1730850641910,7.36630781,166.68,166.63,8.62660781]
[1730850642110,7.36630781,166.68,166.64,3.0004]
[1730850642515,7.36630781,166.68,166.65,3.0002]
[1730850643009,7.36630781,166.68,166.63,7.36630781]
[1730850643610,7.36630781,166.69,166.65,7.36630781]
[1730850644009,10.44630781,166.71,166.66,7.36630781]
[1730850644912,7.36630781,166.69,166.6,4.0524]
[1730850645117,7.36630781,166.69,166.64,7.36630781]
[1730850645415,3.08,166.71,166.66,10.36650781]
[1730850645611,10.44630781,166.71,166.66,7.36630781]
[1730850646117,10.44630781,166.71,166.67,3.0]
[1730850646317,7.36630781,166.7,166.67,3.0]
[1730850647219,7.36630781,166.7,166.66,3.0002]
[1730850648016,7.36630781,166.7,166.64,7.36630781]
[1730850648210,7.36630781,166.7,166.67,2.9999]
[1730850649211,10.50630781,166.7,166.67,2.9999]
[1730850649616,3.14,166.71,166.67,2.9999]
[1730850649816,10.50630781,166.71,166.67,2.9999]
[1730850653313,10.50630781,166.71,166.66,3.0002]
[1730850653619,7.36630781,166.69,166.66,3.0002]
[1730850653916,7.36630781,166.69,166.64,10.36670781]
[1730850654918,7.36630781,166.69,166.66,3.0002]
[1730850655418,7.36630781,166.69,166.64,7.36630781]
[1730850655814,7.36630781,166.69,166.65,3.0004]
[1730850656617,7.36630781,166.7,166.64,7.36630781]
[1730850658023,2.6316,166.77,166.68,7.36630781]
[1730850658224,7.36630781,166.72,166.68,7.36630781]
[1730850658420,7.36630781,166.72,166.66,7.36630781]
[1730850659312,7.36630781,166.72,166.68,2.9998]
[1730850660617,7.36630781,166.72,166.69,2.9997]
[1730850662015,7.36630781,166.72,166.7,2.9995]
[1730850662220,7.36630781,166.72,166.66,7.36630781]
[1730850663316,7.36630781,166.72,166.68,2.9997]
[1730850663515,7.36630781,166.7,166.64,7.36630781]
[1730850663822,7.36630781,166.7,166.65,3.0003]
[1730850664026,7.36630781,166.7,166.64,7.36630781]
[1730850664917,7.36630781,166.7,166.67,3.0]
[1730850666321,7.36630781,166.67,166.6,343.0]
[1730850666624,7.36630781,166.68,166.63,7.36630781]
[1730850667336,3.02,166.69,166.63,7.36630781]
[1730850668218,3.02,166.69,166.67,3.0]
[1730850669025,3.02,166.69,166.61,2.6242]
[1730850669326,10.38630781,166.69,166.64,7.36630781]
[1730850669515,7.36630781,166.69,166.65,7.36630781]
[1730850669717,7.36630781,166.71,166.68,2.9998]
[1730850669920,7.36630781,166.71,166.67,7.36630781]
[1730850670524,7.36630781,166.71,166.69,2.9995]
[1730850670722,7.36630781,166.71,166.66,7.36630781]
[1730850671527,7.36630781,166.71,166.69,2.9996]
[1730850673124,7.36630781,166.69,166.67,3.0]
[1730850673324,7.36630781,166.67,166.61,2.6242]
[1730850673529,7.36630781,166.67,166.61,9.99050781]
[1730850673726,7.36630781,166.66,166.63,3.0007]
[1730850673932,7.36630781,166.64,166.59,7.36630781]
[1730850674230,7.36630781,166.64,166.6,3.0013]
[1730850674625,7.36630781,166.64,166.59,7.36630781]
[1730850674820,7.36630781,166.64,166.61,3.001]
[1730850675029,7.36630781,166.65,166.6,7.36630781]
[1730850676029,7.36630781,166.65,166.61,3.001]
[1730850676220,7.36630781,166.65,166.6,7.36630781]
[1730850676529,7.36630781,166.65,166.64,3.0006]
[1730850677224,7.36630781,166.65,166.61,3.001]
[1730850677430,7.36630781,166.65,166.6,7.36630781]
[1730850678327,7.36630781,166.66,166.6,7.36630781]
[1730850678622,7.36630781,166.64,166.61,3.0011]
[1730850680629,7.36630781,166.64,166.62,3.0009]
[1730850680829,7.36630781,166.64,166.6,7.36630781]
[1730850681032,7.36630781,166.64,166.57,6.8737]
[1730850681033,7.36630781,166.63,166.58,7.36630781]
[1730850681625,7.36630781,166.63,166.61,3.0011]
[1730850681831,7.36630781,166.64,166.58,7.36630781]
[1730850682329,7.36630781,166.64,166.6,3.0011]
[1730850683728,7.36630781,166.6,166.56,3.0019]
[1730850683930,7.36630781,166.6,166.55,7.36630781]
[1730850684622,7.36630781,166.6,166.57,3.0017]
[1730850684819,3.02,166.63,166.57,3.0017]
[1730850685018,7.36630781,166.6,166.57,3.0017]
[1730850685219,3.02,166.69,166.59,7.36630781]
[1730850685423,7.36630781,166.63,166.57,3.02]
[1730850685621,7.36630781,166.63,166.56,3.02]
[1730850685926,7.36630781,166.63,166.6,3.0011]
[1730850686832,7.36630781,166.63,166.61,3.001]
[1730850687628,7.36630781,166.64,166.61,3.001]
[1730850688628,2.662,166.71,166.62,3.0008]
[1730850688930,7.36630781,166.66,166.6,7.36630781]
[1730850689328,7.36630781,166.64,166.62,3.0008]
[1730850689724,7.36630781,166.64,166.57,3.8589]
[1730850689922,7.36630781,166.64,166.61,3.001]
[1730850690235,7.36630781,166.64,166.59,7.36630781]
[1730850690833,7.36630781,166.64,166.61,3.0011]
[1730850691637,7.36630781,166.64,166.63,3.0008]
[1730850691830,7.36630781,166.65,166.63,3.0008]
[1730850692031,7.36630781,166.65,166.6,7.36630781]
[1730850692231,7.36630781,166.65,166.61,3.001]
[1730850692434,2.662,166.71,166.62,7.36630781]
[1730850692633,2.662,166.71,166.57,3.8589]
[1730850692634,7.36630781,166.68,166.63,7.36630781]
[1730850692944,7.36630781,166.67,166.62,7.36630781]
[1730850693640,7.36630781,166.67,166.66,3.0002]
[1730850694243,7.36630781,166.68,166.66,3.0002]
[1730850694439,7.36630781,166.68,166.67,3.0]
[1730850694830,7.36630781,166.7,166.67,3.0]
[1730850696836,7.36630781,166.7,166.65,7.36630781]
[1730850697542,7.36630781,166.7,166.67,3.0]
[1730850698135,7.36630781,166.7,166.65,7.36630781]
[1730850698534,7.36630781,166.68,166.64,7.36630781]
[1730850699041,7.36630781,166.68,166.66,3.0]
[1730850699938,7.36630781,166.7,166.67,3.0]
[1730850700844,2.7357,166.75,166.69,2.9997]
[1730850701037,21.11686822,166.79,166.64,3.06]
[1730850701038,7.36630781,166.72,166.68,7.36630781]
[1730850701241,32.23326383,166.79,166.68,7.36630781]
[1730850701242,7.36630781,166.73,166.68,7.36630781]
[1730850701439,7.36630781,166.73,166.7,2.9994]
[1730850701644,7.36630781,166.73,166.68,7.36630781]
[1730850702145,7.36630781,166.73,166.7,7.36630781]
[1730850702352,10.88465773,166.77,166.71,7.36630781]
[1730850702643,17.60195417,166.77,166.74,2.9987]
[1730850702844,21.35204197,166.78,166.69,3.06]
[1730850703036,7.36630781,166.76,166.71,7.36630781]
[1730850703241,7.36630781,166.77,166.72,7.36630781]
[1730850703656,7.36630781,166.77,166.73,2.9989]
[1730850703954,7.36630781,166.77,166.72,7.36630781]
[1730850704350,7.36630781,166.77,166.75,2.9985]
[1730850705444,7.36630781,166.77,166.74,2.9988]
[1730850705845,7.36630781,166.77,166.72,7.36630781]
[1730850706256,7.36630781,166.77,166.75,2.9984]
[1730850706651,7.36630781,166.76,166.71,7.36630781]
[1730850707547,7.36630781,166.76,166.74,2.9986]
[1730850707751,7.36630781,166.76,166.71,7.36630781]
[1730850707946,7.36630781,166.76,166.72,7.36630781]
[1730850708252,7.36630781,166.78,166.72,7.36630781]
[1730850708951,7.36630781,166.78,166.75,2.9985]
[1730850709651,7.36630781,166.76,166.74,2.9987]
[1730850709845,7.36630781,166.74,166.65,346.9334]
[1730850710045,7.36630781,166.74,166.7,7.36630781]
[1730850710448,7.36630781,166.74,166.73,2.999]
[1730850711447,7.36630781,166.76,166.73,2.999]
[1730850716849,7.36630781,166.77,166.73,2.999]
[1730850717260,7.36630781,166.77,166.74,2.9988]
[1730850717463,7.36630781,166.77,166.71,8.74360781]
[1730850717762,18.02,166.93,166.76,7.36630781]
[1730850717955,7.36630781,166.83,166.76,7.36630781]
[1730850718661,7.36630781,166.81,166.76,7.36630781]
[1730850718864,7.36630781,166.81,166.78,2.998]
[1730850719064,7.36630781,166.81,166.76,7.36630781]
[1730850719959,7.36630781,166.83,166.78,7.36630781]
[1730850720268,7.36630781,166.79,166.74,10.42630781]
[1730850720463,7.36630781,166.79,166.75,2.9985]
[1730850720662,7.36630781,166.78,166.75,2.9985]
[1730850720860,7.36630781,166.8,166.75,2.9985]
[1730850721460,7.36630781,166.8,166.76,2.9984]
[1730850722065,7.36630781,166.8,166.75,2.9986]
[1730850722268,7.36630781,166.8,166.74,10.42630781]
[1730850722463,7.36630781,166.8,166.74,7.36630781]
[1730850723464,7.36630781,166.8,166.76,2.9984]
[1730850724065,7.36630781,166.78,166.75,2.9986]
[1730850725062,32.10568666,166.88,166.83,2.997]
[1730850725257,7.36630781,166.85,166.76,3.06]
[1730850725458,7.36630781,166.84,166.79,7.36630781]
[1730850725859,7.36630781,166.84,166.79,2.9977]
[1730850726264,7.36630781,166.84,166.77,7.36630781]
[1730850726766,7.36630781,166.84,166.79,2.9977]
[1730850727065,7.36630781,166.84,166.79,7.36630781]
[1730850727463,7.36630781,166.84,166.8,2.9977]
[1730850727664,7.36630781,166.84,166.79,7.36630781]
[1730850727969,10.42630781,166.85,166.79,7.36630781]
[1730850728169,10.42630781,166.85,166.81,2.9975]
[1730850728567,10.42630781,166.85,166.79,7.36630781]
[1730850729272,10.42630781,166.85,166.8,2.9975]
[1730850729568,10.42630781,166.85,166.79,7.36630781]
[1730850729770,3.06,166.85,166.81,2.9973]
[1730850729965,10.42630781,166.85,166.81,7.36630781]
[1730850730161,7.36630781,166.85,166.81,7.36630781]
[1730850730358,7.36630781,166.87,166.81,7.36630781]
[1730850731058,7.36630781,166.87,166.82,2.9972]
[1730850731262,7.36630781,166.85,166.82,2.9972]
[1730850731866,7.36630781,166.84,166.8,2.9976]
[1730850732069,7.36630781,166.81,166.61,229.0]
[1730850732270,2.6942,166.89,166.61,229.0]
[1730850732271,7.36630781,166.79,166.73,7.36630781]
[1730850732869,7.36630781,166.76,166.68,1.2517]
[1730850733075,7.36630781,166.76,166.7,7.36630781]
[1730850733369,7.36630781,166.76,166.72,2.999]
[1730850734363,7.36630781,166.76,166.72,10.36530781]
[1730850736273,7.36630781,166.77,166.71,7.36630781]
[1730850736775,7.36630781,166.75,166.71,7.36630781]
[1730850738375,7.36630781,166.75,166.72,2.9991]
[1730850740176,7.36630781,166.74,166.7,10.36570781]
[1730850740382,7.36630781,166.74,166.68,11.81800781]
[1730850740879,7.36630781,166.74,166.7,2.9994]
[1730850742383,7.36630781,166.76,166.71,7.36630781]
[1730850742776,3.2,166.77,166.68,4.4517]
[1730850742777,7.36630781,166.75,166.7,7.36630781]
[1730850744485,7.36630781,166.74,166.69,7.36630781]
[1730850745570,7.36630781,166.69,166.63,3.0007]
[1730850745774,7.36630781,166.67,166.63,10.36700781]
[1730850746474,7.36630781,166.67,166.61,10.36720781]
[1730850746678,7.36630781,166.67,166.61,7.36630781]
[1730850747073,7.36630781,166.67,166.62,3.0009]
[1730850747281,14.72360879,166.69,166.62,3.0009]
[1730850747873,14.72360879,166.69,166.61,3.0011]
[1730850748479,14.72360879,166.69,166.62,3.0009]
[1730850749788,14.72360879,166.69,166.59,11.52360879]
[1730850751285,14.72360879,166.69,166.62,3.0009]
[1730850751685,14.72360879,166.69,166.59,11.52360879]
[1730850752684,14.72360879,166.69,166.63,3.0006]
[1730850753583,14.72360879,166.69,166.64,3.0005]
[1730850757695,14.72360879,166.69,166.63,3.0007]
[1730850758195,14.72360879,166.69,166.61,3.0011]
[1730850758498,14.72360879,166.69,166.58,11.52360879]
[1730850758896,3.1,166.68,166.58,11.52360879]
[1730850760302,3.1,166.68,166.62,3.0009]
[1730850761196,11.52360879,166.67,166.61,3.001]
[1730850761399,11.52360879,166.67,166.58,11.52360879]
[1730850762305,11.52360879,166.67,166.62,3.0009]
[1730850763201,22.59851679,166.73,166.56,346.2]
[1730850763202,18.02,166.8,166.61,11.52360879]
[1730850763402,11.52360879,166.71,166.65,3.0003]
[1730850763604,3.1,166.7,166.65,3.0003]
[1730850764503,11.52360879,166.71,166.65,3.0003]
[1730850764504,3.1,166.69,166.65,3.0003]
[1730850767408,10.47265836,166.69,166.65,3.0003]
[1730850768309,7.37265836,166.67,166.64,3.0004]
[1730850770706,7.37265836,166.67,166.65,3.0004]
[1730850771104,3.1,166.69,166.65,3.0003]
[1730850771105,10.47265836,166.69,166.65,3.0003]
[1730850773812,7.37265836,166.66,166.62,4.0107]
[1730850774010,7.37265836,166.66,166.62,1.2714]
[1730850774511,7.37265836,166.66,166.63,3.0008]
[1730850777113,7.37265836,166.67,166.63,3.0008]
[1730850778118,3.1,166.68,166.62,8.64405836]
[1730850778313,7.37265836,166.67,166.64,3.0004]
[1730850779024,10.47265836,166.68,166.65,3.0002]
[1730850779212,10.47265836,166.68,166.63,7.37265836]
[1730850780225,7.37265836,166.68,166.64,3.0004]
[1730850780919,7.37265836,166.68,166.65,3.0004]
[1730850783519,7.37265836,166.68,166.64,50.0]
[1730850783520,7.37265836,166.68,166.66,3.0001]
[1730850783722,3.1,166.69,166.66,3.0001]
[1730850784325,7.37265836,166.68,166.65,3.0003]
[1730850784524,7.37265836,166.68,166.64,50.0]
[1730850786319,7.37265836,166.68,166.66,3.0002]
[1730850786921,7.37265836,166.68,166.64,50.0]
[1730850788228,7.37265836,166.68,166.64,53.0005]
[1730850788423,7.37265836,166.65,166.64,50.0]
[1730850789434,10.41265836,166.67,166.64,50.0]
[1730850789735,7.37265836,166.65,166.64,50.0]
[1730850792838,3.04,166.67,166.64,50.0]
[1730850794936,3.04,166.67,166.55,3.002]
[1730850795240,7.37265836,166.59,166.55,7.37265836]
[1730850795441,7.37265836,166.61,166.55,7.37265836]
[1730850795747,7.37265836,166.61,166.57,3.0018]
[1730850798641,10.41265836,166.62,166.58,10.37435836]
[1730850799836,10.41265836,166.62,166.58,7.37265836]
[1730850800035,10.41265836,166.62,166.59,3.0015]
[1730850800532,10.41265836,166.62,166.57,7.37265836]
[1730850801241,10.41265836,166.62,166.58,3.0016]
[1730850801441,7.37265836,166.59,166.52,3.04]
[1730850801644,7.37265836,166.61,166.55,7.37265836]
[1730850801844,7.37265836,166.61,166.57,7.37265836]
[1730850802540,3.04,166.62,166.58,7.37265836]
[1730850803044,3.04,166.62,166.52,3.04]
[1730850803045,3.04,166.62,166.6,10.37395836]
[1730850803349,10.41265836,166.62,166.58,7.37265836]
[1730850803643,10.41265836,166.62,166.59,3.0013]
[1730850803842,7.37265836,166.62,166.59,3.0013]
[1730850806235,7.37265836,166.62,166.58,10.37415836]
[1730850806443,7.37265836,166.62,166.58,7.37265836]
[1730850807438,7.37265836,166.61,166.56,7.37265836]
[1730850808244,7.37265836,166.61,166.58,3.0016]
[1730850808648,7.37265836,166.61,166.51,346.8761]
[1730850808840,7.37265836,166.61,166.57,3.0018]
[1730850809040,7.37265836,166.61,166.56,7.37265836]
[1730850810155,7.37265836,166.62,166.58,3.0017]
[1730850811146,7.37265836,166.62,166.57,7.37265836]
[1730850811447,3.04,166.64,166.59,7.37265836]
[1730850811650,10.41265836,166.65,166.59,7.37265836]
[1730850812249,10.41265836,166.65,166.61,3.001]
[1730850813051,10.41265836,166.65,166.59,7.37265836]
[1730850813256,10.41265836,166.65,166.6,3.0012]
[1730850813564,7.37265836,166.63,166.6,3.0012]
[1730850813759,7.37265836,166.63,166.61,3.0011]
[1730850814762,7.37265836,166.63,166.59,7.37265836]
[1730850815061,7.37265836,166.63,166.6,3.0012]
[1730850816762,7.37265836,166.63,166.59,7.37265836]
[1730850816958,7.37265836,166.61,166.57,11.40325836]
[1730850818262,7.37265836,166.61,166.58,3.0015]
[1730850820255,7.37265836,166.61,166.56,3.002]
[1730850820459,7.37265836,166.61,166.56,10.37465836]
[1730850822163,7.37265836,166.56,166.32,343.0]
[1730850822367,7.37265836,166.46,166.41,2.7216]
[1730850822668,10.41265836,166.48,166.43,3.0043]
[1730850822968,7.37265836,166.48,166.43,3.0043]
[1730850823357,7.37265836,166.48,166.41,13.09885836]
[1730850823563,7.37265836,166.48,166.41,10.09425836]
[1730850824159,7.37265836,166.48,166.43,3.0042]
[1730850824360,7.37265836,166.48,166.43,7.37265836]
[1730850828068,7.37265836,166.48,166.44,3.004]
[1730850828775,7.37265836,166.48,166.45,3.0039]
[1730850831073,7.37265836,166.48,166.43,7.37265836]
[1730850831273,7.37265836,166.48,166.44,3.0041]
[1730850831472,7.37265836,166.48,166.42,1.269]
[1730850831779,7.37265836,166.48,166.43,7.37265836]
[1730850833274,7.37265836,166.48,166.44,3.0041]
[1730850835380,7.37265836,166.49,166.44,3.0041]
[1730850835578,7.37265836,166.49,166.45,3.0039]
[1730850835770,7.37265836,166.49,166.43,7.37265836]
[1730850836568,7.37265836,166.49,166.44,3.0042]
[1730850837080,7.37265836,166.48,166.44,3.0042]
[1730850837881,7.37265836,166.46,166.42,4.2735]
[1730850838275,7.37265836,166.46,166.42,8.64165836]
[1730850839486,7.37265836,166.46,166.43,3.0043]
[1730850841875,3.04,166.5,166.44,3.0041]
[1730850842072,7.37265836,166.47,166.44,3.0041]
[1730850843376,11.20626298,166.54,166.42,8.64165836]
[1730850843592,7.37265836,166.54,166.49,3.0032]
[1730850843983,7.37265836,166.51,166.45,7.37265836]
[1730850844282,7.37265836,166.48,166.43,10.41265836]
[1730850845587,7.37265836,166.49,166.45,3.0039]
[1730850846877,7.37265836,166.49,166.46,3.0038]
[1730850847078,7.37265836,166.49,166.44,7.37265836]
[1730850847685,7.37265836,166.49,166.45,3.004]
[1730850848579,7.37265836,166.48,166.44,3.004]
[1730850849084,7.37265836,166.48,166.43,7.37265836]
[1730850849681,7.37265836,166.48,166.45,3.004]
[1730850850483,3.1,166.51,166.47,3.0035]
[1730850850787,7.37265836,166.5,166.47,3.0035]
[1730850851785,10.47265836,166.51,166.48,3.0033]
[1730850851990,7.37265836,166.51,166.48,3.0033]
[1730850852390,7.37265836,166.5,166.47,3.0036]
[1730850853181,7.37265836,166.47,166.42,1.269]
[1730850853389,7.37265836,166.47,166.44,3.004]
[1730850854292,7.37265836,166.46,166.42,4.2734]
[1730850854479,7.37265836,166.46,166.42,3.0044]
[1730850854887,7.37265836,166.46,166.43,3.0043]
[1730850856793,3.1,166.5,166.45,3.0039]
[1730850857087,7.37265836,166.48,166.45,3.0039]
[1730850857483,7.37265836,166.48,166.46,3.0038]
[1730850858890,7.37265836,166.49,166.46,3.0038]
[1730850860094,7.37265836,166.49,166.45,3.004]
[1730850861590,7.37265836,166.49,166.44,7.37265836]
[1730850861980,2.628,166.55,166.45,7.37265836]
[1730850862185,2.628,166.55,166.49,3.0031]
[1730850862391,7.37265836,166.52,166.46,7.37265836]
[1730850863194,3.1,166.55,166.46,7.37265836]
[1730850863494,7.37265836,166.53,166.46,7.37265836]
[1730850863690,7.37265836,166.53,166.51,3.0029]
[1730850863890,7.37265836,166.54,166.48,7.37265836]
[1730850864288,7.37265836,166.54,166.51,3.0028]
[1730850864590,11.23880103,166.61,166.51,7.37265836]
[1730850864789,7.37265836,166.57,166.54,3.0024]
[1730850865490,7.37265836,166.57,166.52,7.37265836]
[1730850866391,7.37265836,166.57,166.54,3.0022]
[1730850867097,7.37265836,166.57,166.53,3.0025]
[1730850867687,7.37265836,166.57,166.54,3.0024]
[1730850870192,7.37265836,166.57,166.52,7.37265836]
[1730850870790,3.1,166.61,166.54,7.37265836]
[1730850870995,7.37265836,166.59,166.54,7.37265836]
[1730850871195,7.37265836,166.59,166.56,3.0019]
[1730850872004,7.37265836,166.59,166.55,3.0022]